bitfinex/quotes_ETHUSD_20251010
["timestamp","ask_amount","ask_price","bid_price","bid_amount"]
[1760135386947,2.57652272,3881.2,3881.1,1.23]
[1760135387256,1.21569804,3884.6,3878.0,2.46]
[1760135387456,1.21549179,3884.4,3878.0,2.46]
[1760135387647,2.5778511,3879.2,3878.0,2.46]
[1760135388021,2.57625721,3881.6,3879.1,2.46]
[1760135388216,2.57780453,3879.3,3879.1,2.46]
[1760135388727,2.57638996,3881.4,3879.1,2.46]
[1760135388938,0.775732,3881.5,3879.1,2.46]
[1760135389139,2.57858229,3878.1,3878.0,2.46]
[1760135389447,2.57855038,3878.2,3878.0,3.69]
[1760135389646,2.57857903,3878.2,3878.0,3.69]
[1760135390430,2.57857903,3878.2,3876.6,1.23]
[1760135390629,2.57742965,3879.9,3876.6,1.23]
[1760135390630,2.5795135,3876.7,3876.6,1.23]
[1760135390860,2.57927391,3877.1,3876.6,1.23]
[1760135391044,2.57950985,3876.8,3876.6,1.23]
[1760135391224,2.57949385,3876.8,3876.6,1.23]
[1760135391649,1.21405759,3883.3,3876.6,1.23]
[1760135391849,1.28908204,3883.1,3876.6,1.23]
[1760135392050,0.77584033,3880.7,3876.6,2.46]
[1760135392353,2.58024563,3875.6,3875.4,1e-08]
[1760135392543,2.58064516,3875.0,3874.9,1e-08]
[1760135393125,0.10355437,3876.3,3874.9,1e-08]
[1760135393328,2.58060209,3875.1,3874.9,1.23000001]
[1760135393656,2.57946477,3876.8,3874.9,1.23000001]
[1760135393821,2.67997908,3881.3,3874.9,1.23000001]
[1760135393822,2.58035519,3875.5,3874.9,1.23000001]
[1760135394022,2.5783205,3878.5,3874.9,1.23000001]
[1760135394227,2.58091157,3874.6,3874.5,0.002]
[1760135394929,2.57916194,3877.3,3874.5,0.002]
[1760135394930,2.57975111,3876.4,3874.5,1.232]
[1760135395127,0.4376,3882.7,3874.5,1.232]
[1760135395128,2.58090032,3874.7,3874.5,1.232]
[1760135395330,2.58161312,3873.6,3873.1,0.005]
[1760135395557,1.28876493,3882.4,3873.1,0.005]
[1760135395761,0.77641861,3877.9,3873.1,0.005]
[1760135395932,2.58029126,3875.6,3873.1,0.005]
[1760135396126,2.01057621,3881.7,3873.1,0.005]
[1760135396358,3.80674246,3881.5,3873.1,1.235]
[1760135396670,0.21356113,3882.6,3873.1,1.235]
[1760135396832,3.83673879,3881.3,3873.1,1.235]
[1760135397032,1.23009794,3881.0,3873.1,1.235]
[1760135397228,1.26027816,3881.3,3873.1,1.235]
[1760135397454,2.58060924,3875.1,3873.1,1.235]
[1760135397652,0.77627998,3881.4,3873.1,1.235]
[1760135397653,2.58069553,3875.0,3873.1,2.465]
[1760135397831,2.57912936,3877.3,3873.1,2.465]
[1760135398030,2.58049725,3875.3,3873.1,2.465]
[1760135398255,1.27841056,3879.3,3873.1,2.465]
[1760135398562,1.22608024,3884.8,3873.1,2.465]
[1760135398867,0.77584233,3881.0,3873.2,1.92]
[1760135399074,2.57427756,3884.6,3873.2,1.92]
[1760135399285,1.24998361,3882.2,3873.2,1.92]
[1760135399577,1.21012977,3882.0,3873.2,1.92]
[1760135399773,0.77585237,3882.3,3873.1,3.697]
[1760135399774,2.57951757,3876.7,3873.1,3.697]
[1760135400076,2.57939766,3876.9,3873.2,1.92]
[1760135400241,0.001,3879.6,3873.1,4.927]
[1760135400586,0.001,3879.6,3873.2,1.92]
[1760135400755,1.24617651,3879.5,3873.1,4.927]
[1760135401082,0.001,3879.6,3873.2,1.92]
[1760135401387,1.24617651,3879.5,3873.2,1.92]
[1760135401674,1.24617651,3879.5,3873.2,1.23]
[1760135401675,2.58173588,3873.4,3873.2,1.23]
[1760135402444,2.58173487,3873.4,3873.2,1.23]
[1760135402801,2.58177291,3873.4,3873.2,1.23]
[1760135402941,2.58211113,3872.8,3872.7,0.002]
[1760135403144,2.58257792,3872.1,3867.0,1.23]
[1760135403363,2.58317834,3871.2,3867.0,1.23]
[1760135403538,2.58317834,3871.2,3871.1,1e-08]
[1760135403739,2.58276665,3871.9,3871.1,1e-08]
[1760135403944,2.5805256,3875.2,3871.1,1e-08]
[1760135404144,0.3246662,3875.9,3871.1,1e-08]
[1760135404344,1.22765824,3880.2,3871.1,1e-08]
[1760135404345,0.3246662,3878.0,3871.1,1.23000001]
[1760135404544,0.3246662,3878.2,3871.2,1.25317412]
[1760135404776,1.26607123,3878.1,3871.1,1.23000001]
[1760135405080,0.77613338,3879.4,3871.1,1.23000001]
[1760135405447,2.57944696,3876.8,3871.1,1.23000001]
[1760135405642,2.58202535,3873.0,3871.1,2.46000001]
[1760135405865,0.005,3875.9,3871.1,2.46000001]
[1760135406072,2.58296153,3871.6,3871.1,2.46000001]
[1760135406275,0.005,3875.9,3871.1,2.46000001]
[1760135406276,3.82534516,3875.2,3871.1,2.46000001]
[1760135406491,1.2752289,3875.8,3871.1,2.46000001]
[1760135406702,2.58017906,3875.7,3871.1,2.46000001]
[1760135407000,1.2752289,3875.8,3871.1,2.46000001]
[1760135407313,2.58274141,3871.9,3871.1,3.69000001]
[1760135407616,2.5818037,3873.3,3871.1,3.69000001]
[1760135407768,0.005,3875.9,3871.1,3.69000001]
[1760135408307,0.005,3875.9,3871.2,1.92]
[1760135408804,2.58047221,3875.3,3871.2,1.92]
[1760135408964,0.005,3875.9,3871.2,1.92]
[1760135409787,0.005,3875.9,3871.2,3.15]
[1760135410326,0.005,3875.9,3871.2,1.23]
[1760135410500,3.84046703,3875.9,3871.2,1.23]
[1760135410670,2.58086098,3874.7,3871.2,1.23]
[1760135411005,2.58178934,3873.3,3871.2,1.23]
[1760135411203,2.58252703,3872.2,3871.2,2.46]
[1760135411398,1.2752289,3875.8,3871.2,2.46]
[1760135411776,2.58182909,3873.3,3871.2,2.46]
[1760135411989,0.005,3875.9,3871.2,2.46]
[1760135412190,2.58096504,3874.6,3871.2,2.46]
[1760135412491,0.005,3875.9,3871.2,2.46]
[1760135412693,2.58133243,3874.0,3871.2,3.69]
[1760135413018,0.005,3875.9,3871.2,3.69]
[1760135413804,0.005,3875.9,3871.3,1.92]
[1760135414249,0.005,3875.9,3871.2,4.92]
[1760135414410,0.005,3875.9,3871.3,1.92]
[1760135415419,0.005,3875.9,3871.3,3.15]
[1760135415826,0.005,3875.9,3871.4,0.00834788]
[1760135416405,0.005,3875.9,3871.3,3.15834788]
[1760135416639,0.005,3875.9,3871.3,1.23]
[1760135416841,0.005,3875.9,3871.3,2.46]
[1760135417138,2.58024563,3875.6,3871.3,2.46]
[1760135417327,0.005,3875.9,3871.3,2.46]
[1760135417909,2.58095225,3874.6,3871.3,2.46]
[1760135418131,0.005,3875.9,3871.3,2.46]
[1760135418332,2.58302996,3871.5,3871.3,3.69]
[1760135418512,1.2752289,3875.8,3871.3,3.69]
[1760135418854,1.21724898,3875.6,3871.3,3.69]
[1760135419055,2.58304489,3871.4,3871.3,3.69]
[1760135419208,2.58304489,3871.4,3871.2,4.92]
[1760135419414,2.58240163,3872.4,3871.2,4.92]
[1760135419616,1.25749426,3875.1,3871.2,4.92]
[1760135419825,2.5821027,3872.9,3871.2,6.15]
[1760135420052,1.21894502,3876.4,3871.2,6.15]
[1760135420211,2.58309254,3871.4,3871.2,6.15]
[1760135420420,1.27697143,3874.3,3871.2,6.15]
[1760135420729,2.58309749,3871.4,3871.2,6.15]
[1760135421112,2.58309749,3871.4,3871.2,4.53535925]
[1760135421442,2.58309749,3871.4,3871.2,1.23]
[1760135421644,2.58344528,3870.8,3870.7,0.002]
[1760135421848,3.8458962,3870.8,3870.7,0.002]
[1760135422234,2.58344528,3870.8,3870.7,0.002]
[1760135422437,2.58371227,3870.4,3870.3,0.002]
[1760135422638,1.23510866,3872.6,3870.3,0.002]
[1760135422837,2.58371227,3870.4,3870.3,0.002]
[1760135423253,2.58384579,3870.2,3870.1,1e-08]
[1760135423649,2.58451359,3869.2,3869.1,1e-08]
[1760135423963,0.63467567,3870.0,3869.1,1e-08]
[1760135424257,1.54582212,3869.2,3869.1,1e-08]
[1760135424439,1.86028685,3869.2,3869.1,1e-08]
[1760135424641,0.31446473,3869.2,3869.1,1e-08]
[1760135424842,0.32435797,3870.8,3869.1,1e-08]
[1760135425155,2.58446569,3869.3,3869.1,1e-08]
[1760135425395,0.27817306,3870.7,3869.1,1.23000001]
[1760135425532,2.58144457,3873.8,3869.1,1.23000001]
[1760135425737,2.58253906,3872.2,3869.1,1.23000001]
[1760135426053,0.005,3873.9,3869.1,1.23000001]
[1760135426772,0.005,3873.9,3869.1,2.46000001]
[1760135427365,1.29261948,3873.8,3869.1,2.46000001]
[1760135427565,0.27817306,3873.8,3869.1,2.46000001]
[1760135427774,2.58256828,3872.2,3869.1,2.46000001]
[1760135427943,0.27817306,3873.8,3869.1,2.46000001]
[1760135428130,0.005,3873.9,3869.1,2.46000001]
[1760135428131,0.30755396,3873.1,3869.2,1.92]
[1760135428332,1.25511702,3873.0,3869.1,3.69000001]
[1760135428568,1.26350687,3872.9,3869.1,3.69000001]
[1760135428768,2.5821778,3872.7,3869.1,3.69000001]
[1760135429062,0.005,3873.9,3869.2,1.92]
[1760135429273,2.58293822,3871.6,3869.2,1.92]
[1760135429436,2.5834152,3870.9,3869.2,1.23]
[1760135429640,2.58362869,3870.6,3869.2,1.23]
[1760135429842,1.20269005,3872.1,3869.2,1.23]
[1760135430184,2.58368931,3870.5,3869.2,1.23]
[1760135430340,1.26245092,3870.8,3869.2,1.23]
[1760135430341,0.03487111,3870.4,3869.2,1.23]
[1760135430542,0.23510033,3870.4,3869.2,1.23]
[1760135431068,0.23510033,3870.4,3869.2,2.46]
[1760135431271,2.58444679,3869.3,3869.2,2.46]
[1760135431474,0.28915665,3871.4,3869.2,2.46]
[1760135431671,2.58438326,3869.4,3869.2,2.46]
[1760135431870,0.30707332,3869.9,3869.2,2.46]
[1760135432069,2.58381791,3870.3,3869.2,2.46]
[1760135432070,1.24349582,3871.5,3869.2,2.46]
[1760135432272,2.5851149,3868.3,3867.2,1.23]
[1760135432576,0.25807578,3868.3,3867.2,1.23]
[1760135432904,2.58411287,3869.8,3867.2,1.23]
[1760135433037,2.58304489,3871.4,3867.2,1.23]
[1760135433238,1.27891345,3870.5,3867.2,1.23]
[1760135433443,0.25835303,3870.8,3867.2,1.23]
[1760135433444,0.25835303,3870.4,3867.2,1.23]
[1760135433741,2.58398617,3870.0,3868.2,4.92]
[1760135433936,0.25835303,3871.3,3868.2,4.92]
[1760135435043,1.25947518,3871.9,3868.2,6.15]
[1760135435248,2.58277803,3871.8,3868.2,6.15]
[1760135435443,2.58420864,3869.7,3868.2,6.15]
[1760135435656,0.25835303,3870.8,3868.2,6.15]
[1760135435845,0.005,3872.9,3868.2,6.15]
[1760135435846,0.25835303,3872.3,3868.2,6.15]
[1760135436060,0.005,3872.9,3868.3,1.92]
[1760135436485,0.005,3872.9,3868.3,3.15]
[1760135436981,0.001,3870.8,3868.3,3.15]
[1760135437749,0.001,3870.8,3868.4,0.01142863]
[1760135438573,0.001,3870.8,3868.4,0.01639424]
[1760135439257,0.001,3870.8,3868.4,3.16639424]
[1760135439780,0.001,3870.8,3868.4,1.24639424]
[1760135440658,0.001,3870.8,3868.4,4.39639424]
[1760135440855,0.001,3870.8,3870.7,4.50351202]
[1760135441772,0.001,3870.8,3870.7,1.92]
[1760135442289,0.001,3870.8,3870.7,3.15]
[1760135443177,0.005,3873.9,3871.3,2.58308031]
[1760135443358,0.005,3873.9,3871.0,1.92]
[1760135443690,0.005,3873.9,3871.4,1.92]
[1760135443888,0.005,3873.9,3873.7,2.58150487]
[1760135444076,0.005,3873.9,3873.8,1.92]
[1760135444283,0.005,3873.9,3872.2,2.58244677]
[1760135444284,0.005,3873.9,3871.9,2.58270822]
[1760135444486,0.005,3873.9,3870.6,17.1739]
[1760135444686,0.005,3873.9,3871.8,1.92]
[1760135444885,0.005,3873.9,3871.0,0.39548417]
[1760135444886,0.005,3873.9,3871.9,2.58264485]
[1760135445195,0.005,3873.9,3871.9,1.23]
[1760135445767,0.005,3873.9,3873.3,1.92]
[1760135445967,0.005,3873.9,3873.8,4.50144457]
[1760135446298,0.005,3873.9,3873.8,1.92]
[1760135446617,0.005,3873.9,3871.5,0.39552758]
[1760135446799,0.005,3873.9,3872.6,1.23]
[1760135446969,0.005,3873.9,3873.7,2.58145873]
[1760135447172,0.001,3879.6,3873.6,2.58156639]
[1760135447365,0.001,3879.6,3875.2,2.58045955]
[1760135447619,0.001,3879.6,3875.3,2.58039251]
[1760135447798,0.001,3879.6,3873.7,1.92]
[1760135448097,0.001,3879.6,3872.6,1.23]
[1760135448299,0.001,3879.6,3873.5,3.8115921]
[1760135448504,0.001,3879.6,3874.6,2.58090991]
[1760135448677,0.001,3879.6,3873.4,1.92]
[1760135448868,0.001,3879.6,3873.9,1.92]
[1760135449073,0.001,3879.6,3875.0,1.92]
[1760135449299,0.001,3879.6,3874.2,2.58113764]
[1760135449300,0.001,3879.6,3875.2,2.58044595]
[1760135449501,0.001,3879.6,3875.2,1.23]
[1760135450617,2.5782704,3878.6,3875.2,1.23]
[1760135450816,1.22521128,3879.4,3875.2,1.23]
[1760135451104,1.29887998,3878.5,3875.2,2.46]
[1760135451311,1.22270663,3878.3,3875.2,2.46]
[1760135451512,1.27824677,3877.9,3875.2,2.46]
[1760135451719,1.21282609,3877.7,3873.5,1.23]
[1760135451921,1.25890727,3875.5,3873.5,1.23]
[1760135452218,2.58156479,3873.7,3873.5,1.23]
[1760135452397,2.58156479,3873.7,3873.5,2.46]
[1760135453119,2.58184446,3873.2,3873.1,0.005]
[1760135453288,2.58174253,3873.4,3873.1,0.005]
[1760135453486,0.40817586,3873.3,3873.1,0.005]
[1760135453822,1.20314946,3875.3,3873.1,1.235]
[1760135453823,0.35656928,3874.9,3873.1,1.235]
[1760135453996,0.27379551,3875.0,3873.1,1.235]
[1760135455447,0.27379551,3875.0,3873.1,2.465]
[1760135455622,0.27379551,3875.0,3874.8,0.002]
[1760135456788,0.27379551,3875.0,3874.8,1.232]
[1760135457821,2.85445477,3875.0,3874.8,1.232]
[1760135458021,2.58097819,3874.5,3874.4,0.002]
[1760135458220,0.27379551,3875.0,3874.4,0.002]
[1760135458423,2.58096442,3874.6,3874.4,0.002]
[1760135458720,1.43,3874.5,3874.4,0.002]
[1760135458910,0.27379551,3875.0,3874.4,0.002]
[1760135459520,0.27379551,3875.0,3874.4,1.232]
[1760135460532,3.83854394,3874.6,3874.4,1.232]
[1760135460912,3.83854394,3874.6,3874.4,2.462]
[1760135461231,0.001,3875.4,3874.4,2.462]
[1760135461432,3.83857722,3874.6,3874.4,2.462]
[1760135462046,2.58094786,3874.6,3874.4,2.462]
[1760135462345,3.83857722,3874.6,3874.4,3.692]
[1760135462985,0.001,3875.4,3874.4,3.692]
[1760135463603,0.001,3875.4,3874.4,4.922]
[1760135464910,0.001,3875.4,3874.5,1.92]
[1760135466246,0.001,3875.4,3874.4,6.152]
[1760135466546,0.001,3875.4,3874.4,7.382]
[1760135467509,0.001,3875.4,3875.2,2.58049041]
[1760135467713,1e-08,3876.2,3876.1,2.57991279]
[1760135469012,1.29063349,3883.2,3875.0,1.92]
[1760135469234,1.26179492,3882.6,3875.9,1.23]
[1760135469437,1.66189267,3882.6,3877.3,2.57907228]
[1760135469636,1.28835042,3882.4,3876.6,2.57955962]
[1760135469939,2.57419225,3884.8,3875.9,1.23]
[1760135469940,1.2495691,3882.2,3875.9,1.23]
[1760135470240,1.20971526,3882.0,3875.9,1.23]
[1760135470414,1.2446486,3881.8,3875.9,1.23]
[1760135470608,0.41212144,3881.8,3875.9,2.46]
[1760135470810,1.28803853,3881.6,3875.9,2.46]
[1760135471042,1.24904859,3881.9,3875.9,2.46]
[1760135471347,1.06673456,3883.0,3875.9,2.46]
[1760135471348,1.23000437,3881.5,3875.9,2.46]
[1760135471560,1.25986365,3881.3,3875.9,2.46]
[1760135471722,1.20807979,3881.1,3875.9,2.46]
[1760135471923,0.41032061,3881.0,3875.9,3.69]
[1760135472226,0.66635215,3881.0,3875.9,3.69]
[1760135472406,1.20589613,3880.9,3875.9,3.69]
[1760135472611,1.22325294,3880.7,3875.9,3.69]
[1760135472828,1.23088829,3880.5,3875.9,3.69]
[1760135473028,2.57586694,3882.2,3875.9,3.69]
[1760135473029,1.20762318,3880.3,3875.9,3.69]
[1760135473230,0.25603154,3880.4,3875.9,3.69]
[1760135473433,0.37563683,3880.2,3875.9,4.92]
[1760135473628,0.4474,3885.8,3876.0,1.92]
[1760135473938,0.001,3881.8,3876.0,1.92]
[1760135474138,0.36118608,3881.7,3878.1,1.92]
[1760135474306,0.36118608,3881.7,3879.5,1.92]
[1760135474307,0.33571615,3881.7,3879.5,1.92]
[1760135474507,0.001,3881.8,3876.2,1.92]
[1760135474719,0.001,3881.8,3876.4,1.92]
[1760135474920,0.001,3881.8,3876.0,3.15]
[1760135475122,0.001,3881.8,3876.0,3.45925663]
[1760135475325,0.001,3881.8,3876.1,0.30925663]
[1760135475611,0.001,3881.8,3878.1,2.5785198]
[1760135475808,0.001,3881.8,3877.1,0.28347337]
[1760135476014,0.001,3881.8,3876.0,1.23]
[1760135476229,0.001,3881.8,3876.0,2.46]
[1760135476609,0.001,3881.8,3876.1,2.20347337]
[1760135476817,0.001,3881.8,3876.0,2.46]
[1760135477413,0.001,3881.8,3876.2,1.92]
[1760135477643,0.001,3881.8,3876.1,1.92]
[1760135477841,0.001,3881.8,3876.0,3.69]
[1760135478424,0.001,3881.8,3876.1,0.27781804]
[1760135478735,0.001,3881.8,3876.1,2.19781804]
[1760135478934,0.001,3881.8,3876.2,0.27781804]
[1760135479244,0.001,3881.8,3876.1,1.23]
[1760135479541,0.001,3881.8,3876.1,3.15]
[1760135480058,0.38326224,3881.7,3876.7,1.92]
[1760135480223,0.001,3881.8,3876.6,2.57954842]
[1760135480427,0.001,3881.8,3877.9,2.57871183]
[1760135480732,0.001,3881.8,3876.1,2.46]
[1760135480733,0.001,3881.8,3880.1,2.57718715]
[1760135481056,0.001,3881.8,3879.6,4.49756736]
[1760135481215,0.001,3881.8,3879.3,0.26005079]
[1760135481550,0.001,3881.8,3879.1,1.92]
[1760135481881,0.001,3881.8,3879.1,1.23]
[1760135483157,0.001,3881.8,3879.1,2.46]
[1760135483752,0.001,3881.8,3879.2,0.29563412]
[1760135483955,0.001,3881.8,3879.2,2.21563412]
[1760135484122,0.001,3881.8,3879.2,4.79345414]
[1760135484318,0.001,3881.8,3879.2,1.92]
[1760135484555,0.001,3881.8,3879.2,3.15]
[1760135485352,0.001,3881.8,3879.4,2.5777182]
[1760135485586,0.001,3881.8,3879.5,4.49761378]
[1760135485732,0.001,3881.8,3879.2,1.23]
[1760135486052,0.001,3881.8,3879.5,1.23]
[1760135487153,0.001,3881.8,3879.5,2.46]
[1760135488753,0.001,3881.8,3879.6,1.92]
[1760135489264,0.37264665,3886.4,3884.8,2.57413509]
[1760135489487,0.001,3887.3,3886.3,2.23154877]
[1760135489992,0.001,3887.3,3886.3,3.46154877]
[1760135491367,0.001,3887.3,3886.4,1.92]
[1760135492087,1e-08,3887.3,3887.2,2.57254579]
[1760135492650,1e-08,3887.3,3887.2,3.80254579]
[1760135493283,1e-08,3887.3,3886.9,2.29522716]
[1760135493874,1e-08,3887.3,3887.0,0.5218554]
[1760135494076,1e-08,3887.3,3887.0,0.27088008]
[1760135494589,1e-08,3887.3,3887.2,35.3069]
[1760135494793,1e-08,3887.3,3887.2,35.99698337]
[1760135494958,1e-08,3887.3,3887.2,35.3069]
[1760135495355,1e-08,3887.3,3887.2,1.92]
[1760135495579,1e-08,3887.3,3887.2,1.5658328]
[1760135496095,1e-08,3887.3,3887.2,1.23]
[1760135496869,1e-08,3887.3,3887.2,2.46]
[1760135498500,1e-08,3887.3,3887.2,3.69]
[1760135499772,1e-08,3887.3,3887.2,6.84]
[1760135499967,1e-08,3887.3,3887.2,4.92]
[1760135500891,1e-08,3887.3,3887.2,6.84]
[1760135501085,1e-08,3887.3,3887.2,8.07]
[1760135501261,1e-08,3887.3,3887.2,6.15]
[1760135502365,1e-08,3887.3,3887.2,8.07]
[1760135502663,1e-08,3887.3,3887.2,7.38]
[1760135503879,1e-08,3887.3,3887.2,8.12111825]
[1760135504081,1e-08,3887.3,3887.2,10.04111825]
[1760135504694,1e-08,3887.3,3887.2,8.12111825]
[1760135504894,1e-08,3887.3,3887.2,10.04111825]
[1760135505191,1e-08,3887.3,3887.2,11.27111825]
[1760135506092,0.001,3891.6,3887.3,1.92]
[1760135506594,0.001,3891.6,3887.3,3.15]
[1760135506970,0.001,3891.6,3887.4,0.22588091]
[1760135507181,0.001,3891.6,3887.3,3.15]
[1760135507991,0.001,3891.6,3887.3,4.38]
[1760135508192,0.001,3891.6,3887.3,2.46]
[1760135508696,0.001,3891.6,3887.3,4.38]
[1760135509195,0.001,3891.6,3887.3,5.67713664]
[1760135509397,0.001,3891.6,3887.7,37.3909]
[1760135509597,0.001,3891.6,3887.8,1.92]
[1760135510300,0.001,3888.1,3887.8,1.92]
[1760135510502,0.001,3888.1,3887.3,5.61]
[1760135510701,0.001,3888.1,3887.7,1.23]
[1760135510878,0.001,3888.1,3887.7,2.49121072]
[1760135511198,0.001,3888.1,3887.9,1.26266476]
[1760135511370,0.001,3888.1,3888.0,35.17292849]
[1760135511565,0.001,3888.1,3888.0,36.06966771]
[1760135511778,0.001,3888.1,3888.0,35.8089]
[1760135512202,0.001,3888.1,3888.0,37.29966771]
[1760135513103,0.001,3888.1,3888.0,35.37966771]
[1760135513399,0.001,3888.1,3888.0,3.41076771]
[1760135513700,0.001,3888.1,3888.0,2.72076771]
[1760135513868,0.001,3888.1,3888.0,2.46]
[1760135514306,0.001,3888.1,3888.0,2.429]
[1760135514517,3.40437682,3888.1,3888.0,0.60240762]
[1760135514681,2.70272102,3888.1,3888.0,0.60240762]
[1760135514880,1.431,3888.1,3888.0,0.60240762]
[1760135515094,0.001,3888.1,3888.0,1.83240762]
[1760135517818,0.25333494,3888.1,3888.0,4.29240762]
[1760135518017,0.001,3888.1,3888.0,4.29240762]
[1760135519188,0.001,3888.1,3888.0,5.52240762]
[1760135519588,1.27272102,3888.1,3888.0,5.52240762]
[1760135519804,0.001,3888.1,3888.0,5.52240762]
[1760135520005,0.001,3888.1,3888.0,5.51853689]
[1760135520423,0.001,3888.1,3888.0,6.74853689]
[1760135520898,1.27272102,3888.1,3888.0,6.74853689]
[1760135521309,0.001,3888.1,3888.0,6.74853689]
[1760135521815,0.001,3888.1,3887.7,1.23]
[1760135521816,0.87870892,3888.0,3887.7,1.23]
[1760135522018,1.25577211,3888.0,3887.7,1.23]
[1760135522206,0.87870892,3888.0,3887.7,1.23]
[1760135522607,0.36721405,3887.9,3887.7,1.23]
[1760135522806,0.87870892,3888.0,3887.7,1.23]
[1760135523198,0.87870892,3888.0,3887.7,2.46]
[1760135524596,0.87870892,3888.0,3887.7,3.69]
[1760135525923,1.23812418,3887.9,3887.7,4.92]
[1760135526128,2.10780204,3888.0,3887.3,3.47798498]
[1760135526422,1.23812418,3887.9,3887.3,3.47798498]
[1760135526593,1.23812418,3887.9,3887.2,5.13146114]
[1760135527023,1.23812418,3887.9,3886.9,1.19858269]
[1760135527323,0.38405817,3887.8,3886.9,0.37746528]
[1760135527525,0.27089847,3887.8,3886.9,0.37746528]
[1760135527822,0.27089847,3887.8,3878.6,25.168]
[1760135527823,0.30333666,3887.8,3886.3,1.31101518]
[1760135528031,0.52002343,3887.7,3886.3,0.41068685]
[1760135528239,0.98132343,3887.7,3886.3,0.11509636]
[1760135528417,0.32438096,3885.3,3878.5,0.0017]
[1760135528599,0.7142112,3887.6,3876.0,3.69]
[1760135528800,0.4941112,3887.6,3876.0,3.69]
[1760135529100,1.28054729,3887.4,3876.0,3.69]
[1760135529289,1.22932693,3887.2,3876.0,3.69]
[1760135529495,1.25643671,3887.0,3876.0,3.69]
[1760135529794,1.73966964,3886.9,3879.5,2.81129108]
[1760135529990,0.4613,3886.8,3879.5,4.04129108]
[1760135530220,0.79278106,3886.7,3879.5,4.04129108]
[1760135530419,1.28409129,3886.5,3879.5,4.04129108]
[1760135530649,1.24235716,3886.3,3879.5,4.04129108]
[1760135530830,1.21978052,3886.1,3879.5,4.04129108]
[1760135531002,1.24722181,3885.9,3879.5,4.04129108]
[1760135531197,1.20455448,3885.7,3879.5,2.74934407]
[1760135531398,3.8557807,3879.3,3879.2,0.26750311]
[1760135531704,3.8557807,3879.3,3876.3,0.40196111]
[1760135531705,1.21286819,3879.2,3876.3,0.40196111]
[1760135531908,2.57692109,3880.6,3876.3,0.40196111]
[1760135532100,2.57885377,3877.7,3876.0,3.69]
[1760135532427,1.29542031,3878.2,3876.0,3.69]
[1760135532614,1.25815509,3878.8,3876.1,3.69]
[1760135532826,0.37324868,3878.3,3876.1,3.69]
[1760135533148,1.26565672,3878.1,3876.1,3.69]
[1760135533308,1.27783226,3877.9,3876.1,2.43195038]
[1760135533507,1.59476075,3877.8,3876.1,2.43195038]
[1760135533718,2.57983436,3876.3,3876.1,2.43195038]
[1760135534027,0.30238884,3876.2,3876.0,2.19685056]
[1760135534325,0.1090672,3877.1,3876.0,2.19685056]
[1760135534543,0.24805644,3877.8,3876.0,2.19685056]
[1760135534841,0.4613,3881.5,3876.0,2.19685056]
[1760135534842,1.21887166,3879.6,3876.0,2.19685056]
[1760135535045,0.31642339,3879.5,3876.0,2.19685056]
[1760135535250,1.28951229,3879.4,3876.0,3.42685056]
[1760135535542,0.30006418,3880.0,3876.0,3.42685056]
[1760135535543,0.31642339,3880.0,3876.0,3.42685056]
[1760135535752,0.30006418,3880.8,3876.0,3.42685056]
[1760135535954,0.19250955,3880.5,3876.0,3.42685056]
[1760135536120,0.31654916,3880.7,3876.0,3.42685056]
[1760135536315,2.5769875,3880.5,3876.0,3.42685056]
[1760135536520,1.21020976,3880.9,3876.0,3.42685056]
[1760135536851,0.30006418,3880.8,3876.0,4.65685056]
[1760135537158,1.23408908,3884.6,3876.0,4.65685056]
[1760135537159,0.4613,3884.6,3876.0,4.65685056]
[1760135537363,1.27770669,3885.7,3876.0,4.65685056]
[1760135537364,0.4613,3885.3,3876.2,1.28677641]
[1760135537574,0.4613,3885.3,3876.1,2.96003597]
[1760135537722,0.001,3888.1,3876.4,1.24266697]
[1760135537922,0.001,3888.1,3876.6,1.29733199]
[1760135538218,0.001,3888.1,3876.8,3.1779023]
[1760135538423,0.001,3888.1,3877.0,1.28229903]
[1760135538727,0.001,3888.1,3877.2,3.21345057]
[1760135539052,0.001,3888.1,3877.4,1.26639785]
[1760135539252,0.001,3888.1,3877.6,3.13098636]
[1760135539549,0.001,3888.1,3883.9,1.92]
[1760135540739,0.001,3888.1,3884.0,0.26302362]
[1760135540956,0.001,3888.1,3883.9,1.23]
[1760135542354,0.001,3888.1,3883.9,2.46]
[1760135543564,0.001,3888.1,3884.2,1.22287808]
[1760135544540,0.001,3888.1,3885.1,1.92]
[1760135544923,0.001,3888.1,3885.1,3.15]
[1760135545429,0.001,3888.1,3885.2,0.24110056]
[1760135545634,0.001,3888.1,3885.1,3.15]
[1760135545851,0.001,3888.1,3885.1,1.23]
[1760135546425,0.001,3888.1,3885.1,2.46]
[1760135547940,0.001,3888.1,3885.1,3.69]
[1760135549237,0.001,3888.1,3885.2,1.92]
[1760135549438,0.001,3888.1,3885.1,4.92]
[1760135550665,0.001,3888.1,3885.1,6.15]
[1760135551962,0.33489916,3888.0,3885.1,7.38]
[1760135552260,0.001,3888.1,3885.2,1.92]
[1760135552638,0.33489916,3888.0,3885.2,1.92]
[1760135552960,0.001,3888.1,3885.2,1.92]
[1760135553150,0.001,3888.1,3885.1,7.38]
[1760135553359,0.001,3888.1,3885.1,8.61]
[1760135553544,0.001,3888.1,3886.0,0.488069]